[Event "*** Titled Tuesday Blitz"]
[Site "Chess.com"]
[Date "2020.04.28"]
[Round "5"]
[White "PlayChessSimple"]
[Black "jaskol95"]
[Result "1-0"]
[WhiteElo "2487"]
[BlackElo "2263"]
[TimeControl "180+1"]
[EndTime "10:55:50 PDT"]
[Termination "PlayChessSimple won by checkmate"]

1. e4 {[%clk 0:03:00.9]} 1... e6 {[%clk 0:02:54.8]} 2. d4 {[%clk 0:03:00.1]}
2... d5 {[%clk 0:02:55.4]} 3. e5 {[%clk 0:02:59.3]} 3... c5 {[%clk 0:02:54.4]}
4. c3 {[%clk 0:02:59.3]} 4... Nc6 {[%clk 0:02:54.7]} 5. Nf3 {[%clk 0:02:59.8]}
5... Bd7 {[%clk 0:02:53.4]} 6. Be2 {[%clk 0:02:58.5]} 6... cxd4 {[%clk
0:02:49.2]} 7. cxd4 {[%clk 0:02:58.3]} 7... Qb6 {[%clk 0:02:49.6]} 8. Nc3 {[%clk
0:02:57.3]} 8... Nge7 {[%clk 0:02:47.1]} 9. O-O {[%clk 0:02:57]} 9... Nf5 {[%clk
0:02:47.3]} 10. Na4 {[%clk 0:02:56.8]} 10... Qc7 {[%clk 0:02:46.5]} 11. a3
{[%clk 0:02:52.2]} 11... Be7 {[%clk 0:02:42.6]} 12. b4 {[%clk 0:02:51]} 12... a6
{[%clk 0:02:41.2]} 13. Nc5 {[%clk 0:02:48.6]} 13... f6 {[%clk 0:02:33.6]} 14.
Nxd7 {[%clk 0:02:25.4]} 14... Qxd7 {[%clk 0:02:31.5]} 15. Bd3 {[%clk 0:02:26]}
15... Nfxd4 {[%clk 0:02:21.2]} 16. Nxd4 {[%clk 0:02:23.6]} 16... Nxd4 {[%clk
0:02:22.1]} 17. Bb2 {[%clk 0:02:14.2]} 17... fxe5 {[%clk 0:02:19.4]} 18. Qh5+
{[%clk 0:02:10.6]} 18... Kf8 {[%clk 0:02:10.4]} 19. f4 {[%clk 0:02:02.1]} 19...
e4 {[%clk 0:01:59.3]} 20. Bxd4 {[%clk 0:02:01.3]} 20... exd3 {[%clk 0:01:58.6]}
21. f5 {[%clk 0:02:01.9]} 21... e5 {[%clk 0:01:49.6]} 22. Bxe5 {[%clk
0:01:56.5]} 22... Bf6 {[%clk 0:01:49.8]} 23. Bxf6 {[%clk 0:01:48]} 23... gxf6
{[%clk 0:01:50.7]} 24. Rad1 {[%clk 0:01:48]} 24... Qf7 {[%clk 0:01:45.3]} 25.
Qh6+ {[%clk 0:01:45.5]} 25... Qg7 {[%clk 0:01:45.2]} 26. Qf4 {[%clk 0:01:42.2]}
26... Re8 {[%clk 0:01:37.4]} 27. Rxd3 {[%clk 0:01:39.5]} 27... Re5 {[%clk
0:01:36.4]} 28. Rxd5 {[%clk 0:01:22.5]} 28... Qe7 {[%clk 0:01:11.6]} 29. Qh6+
{[%clk 0:00:56.5]} 29... Kf7 {[%clk 0:00:56.2]} 30. Qh5+ {[%clk 0:00:53.5]}
30... Kf8 {[%clk 0:00:52.3]} 31. Rxe5 {[%clk 0:00:50]} 31... Qxe5 {[%clk
0:00:51.3]} 32. Rd1 {[%clk 0:00:50.5]} 32... Ke7 {[%clk 0:00:45.4]} 33. Qf3
{[%clk 0:00:47.9]} 33... Rc8 {[%clk 0:00:37.4]} 34. h3 {[%clk 0:00:36]} 34...
Rc7 {[%clk 0:00:36.6]} 35. Qh5 {[%clk 0:00:30.7]} 35... Qe3+ {[%clk 0:00:26.3]}
36. Kh1 {[%clk 0:00:29.1]} 36... Kf8 {[%clk 0:00:18]} 37. Qg4 {[%clk 0:00:21.1]}
37... Kf7 {[%clk 0:00:14.5]} 38. Qh4 {[%clk 0:00:16.3]} 38... h6 {[%clk
0:00:09.6]} 39. Qh5+ {[%clk 0:00:16]} 39... Kf8 {[%clk 0:00:09.2]} 40. Qg6
{[%clk 0:00:13.3]} 40... Qg5 {[%clk 0:00:08.8]} 41. Rd8+ {[%clk 0:00:10.7]}
41... Ke7 {[%clk 0:00:09.2]} 42. Qe8# {[%clk 0:00:10.5]} 1-0

[Event "*** Titled Tuesday Blitz"]
[Site "Chess.com"]
[Date "2020.04.28"]
[Round "5"]
[White "harvsp123"]
[Black "Murad_Ibrahimli"]
[Result "0-1"]
[WhiteElo "2524"]
[BlackElo "2754"]
[TimeControl "180+1"]
[EndTime "10:55:51 PDT"]
[Termination "Murad_Ibrahimli won by resignation"]

1. e4 {[%clk 0:03:00.9]} 1... c5 {[%clk 0:02:59.6]} 2. Nf3 {[%clk 0:02:57.8]}
2... d6 {[%clk 0:02:58.3]} 3. d4 {[%clk 0:02:57.3]} 3... cxd4 {[%clk 0:02:58.1]}
4. Nxd4 {[%clk 0:02:58.2]} 4... Nf6 {[%clk 0:02:58.1]} 5. Nc3 {[%clk 0:02:57.7]}
5... a6 {[%clk 0:02:57.4]} 6. h3 {[%clk 0:02:55.7]} 6... g6 {[%clk 0:02:55.1]}
7. Be3 {[%clk 0:02:53.7]} 7... Bg7 {[%clk 0:02:54.7]} 8. Qd2 {[%clk 0:02:46.4]}
8... Nc6 {[%clk 0:02:53.4]} 9. g4 {[%clk 0:02:45.7]} 9... Bd7 {[%clk 0:02:48.2]}
10. Bg2 {[%clk 0:02:41.2]} 10... Rc8 {[%clk 0:02:45.7]} 11. f4 {[%clk
0:02:38.3]} 11... O-O {[%clk 0:02:18.6]} 12. O-O-O {[%clk 0:02:24.1]} 12... Na5
{[%clk 0:02:03.8]} 13. b3 {[%clk 0:02:15.6]} 13... Qc7 {[%clk 0:01:45.9]} 14.
Kb2 {[%clk 0:02:01.8]} 14... b5 {[%clk 0:01:14.5]} 15. g5 {[%clk 0:01:19.8]}
15... b4 {[%clk 0:01:12]} 16. Nce2 {[%clk 0:01:19.4]} 16... Nh5 {[%clk
0:01:04.1]} 17. Bf3 {[%clk 0:01:17.3]} 17... e5 {[%clk 0:00:58.2]} 18. fxe5
{[%clk 0:01:16.6]} 18... dxe5 {[%clk 0:00:58.1]} 19. Nf5 {[%clk 0:01:12.3]}
19... Bxf5 {[%clk 0:00:56.9]} 20. exf5 {[%clk 0:00:56.1]} 20... e4+ {[%clk
0:00:56.7]} 21. f6 {[%clk 0:00:56.5]} 21... exf3 {[%clk 0:00:55.7]} 22. Nd4
{[%clk 0:00:53.1]} 22... Nxf6 {[%clk 0:00:52.3]} 23. gxf6 {[%clk 0:00:52.6]}
23... Bxf6 {[%clk 0:00:52.9]} 24. Kb1 {[%clk 0:00:38.8]} 24... Rfd8 {[%clk
0:00:49.5]} 25. Qxb4 {[%clk 0:00:35.8]} 25... Bxd4 {[%clk 0:00:33.8]} 26. Rxd4
{[%clk 0:00:33.8]} 26... Qxc2+ {[%clk 0:00:31.4]} 27. Ka1 {[%clk 0:00:34.4]}
27... Nc6 {[%clk 0:00:29.4]} 28. Rxd8+ {[%clk 0:00:33.4]} 28... Rxd8 {[%clk
0:00:29.7]} 29. Qc5 {[%clk 0:00:31.2]} 29... Qe4 {[%clk 0:00:23.4]} 30. Rc1
{[%clk 0:00:25.3]} 30... Ne5 {[%clk 0:00:17.4]} 31. Qe7 {[%clk 0:00:22.2]} 31...
Ra8 {[%clk 0:00:07.7]} 32. Bd2 {[%clk 0:00:15.2]} 32... f2 {[%clk 0:00:06]} 33.
Bc3 {[%clk 0:00:13.9]} 33... Qe3 {[%clk 0:00:06.1]} 34. Kb2 {[%clk 0:00:09.2]}
34... Nd3+ {[%clk 0:00:05.5]} 35. Ka3 {[%clk 0:00:09]} 35... Qxe7+ {[%clk
0:00:05.9]} 36. b4 {[%clk 0:00:08.9]} 36... Nxc1 {[%clk 0:00:05.9]} 0-1

[Event "*** Titled Tuesday Blitz"]
[Site "Chess.com"]
[Date "2020.04.28"]
[Round "5"]
[White "lucliasco"]
[Black "SaqoChess_Twitch"]
[Result "1-0"]
[WhiteElo "2643"]
[BlackElo "2473"]
[TimeControl "180+1"]
[EndTime "10:55:51 PDT"]
[Termination "lucliasco won by resignation"]

1. d4 {[%clk 0:03:00.9]} 1... d5 {[%clk 0:02:59.4]} 2. Nf3 {[%clk 0:03:01.1]}
2... Nf6 {[%clk 0:02:59]} 3. e3 {[%clk 0:03:02]} 3... e6 {[%clk 0:02:59.4]} 4.
Bd3 {[%clk 0:03:01.6]} 4... Be7 {[%clk 0:02:59.3]} 5. O-O {[%clk 0:03:02]} 5...
b6 {[%clk 0:02:59.8]} 6. b3 {[%clk 0:03:02.6]} 6... Bb7 {[%clk 0:03:00.4]} 7.
Bb2 {[%clk 0:03:01.2]} 7... Ne4 {[%clk 0:03:00.8]} 8. c4 {[%clk 0:02:58.5]} 8...
O-O {[%clk 0:02:56.5]} 9. Nc3 {[%clk 0:02:58.8]} 9... Nd7 {[%clk 0:02:53.1]} 10.
Qc2 {[%clk 0:02:52.6]} 10... f5 {[%clk 0:02:51.1]} 11. Ne2 {[%clk 0:02:50.3]}
11... Ndf6 {[%clk 0:02:47.6]} 12. Ne5 {[%clk 0:02:49]} 12... c5 {[%clk
0:02:36.1]} 13. f3 {[%clk 0:02:38.6]} 13... Nd6 {[%clk 0:02:33]} 14. Nf4 {[%clk
0:02:38.9]} 14... Qc8 {[%clk 0:02:26.9]} 15. Rac1 {[%clk 0:02:38.8]} 15... dxc4
{[%clk 0:02:26]} 16. bxc4 {[%clk 0:02:37.5]} 16... cxd4 {[%clk 0:02:24.5]} 17.
exd4 {[%clk 0:02:35.5]} 17... g5 {[%clk 0:02:25.1]} 18. Nh3 {[%clk 0:02:31.5]}
18... Nd7 {[%clk 0:02:24.4]} 19. Nxd7 {[%clk 0:02:21.4]} 19... Qxd7 {[%clk
0:02:25.3]} 20. Qe2 {[%clk 0:02:22.3]} 20... Bf6 {[%clk 0:02:20.3]} 21. Rfe1
{[%clk 0:02:22.5]} 21... Nf7 {[%clk 0:02:08.8]} 22. Rcd1 {[%clk 0:01:52.8]}
22... Bxd4+ {[%clk 0:02:06.1]} 23. Bxd4 {[%clk 0:01:53.7]} 23... Qxd4+ {[%clk
0:02:06.4]} 24. Nf2 {[%clk 0:01:50.2]} 24... Qf6 {[%clk 0:01:43.2]} 25. Qxe6
{[%clk 0:01:49]} 25... Qxe6 {[%clk 0:01:42.9]} 26. Rxe6 {[%clk 0:01:49.9]} 26...
f4 {[%clk 0:01:41.1]} 27. Ng4 {[%clk 0:01:44.7]} 27... Kg7 {[%clk 0:01:36.5]}
28. Re7 {[%clk 0:01:42.2]} 28... Bc8 {[%clk 0:01:33.2]} 29. Be4 {[%clk
0:01:33.8]} 29... Rb8 {[%clk 0:01:27.4]} 30. Bd5 {[%clk 0:01:29.6]} 30... Bxg4
{[%clk 0:01:26]} 31. fxg4 {[%clk 0:01:30.5]} 31... Kf6 {[%clk 0:01:26.2]} 32.
Rde1 {[%clk 0:01:27]} 32... a5 {[%clk 0:01:13.8]} 33. R1e6+ {[%clk 0:01:26.4]}
33... Kg7 {[%clk 0:01:14]} 34. Rc6 {[%clk 0:01:22.9]} 34... Rbe8 {[%clk
0:01:04.1]} 35. Rcc7 {[%clk 0:01:22.5]} 35... Rxe7 {[%clk 0:01:04.2]} 36. Rxe7
{[%clk 0:01:23.4]} 36... h5 {[%clk 0:00:50.6]} 37. gxh5 {[%clk 0:01:22.4]} 37...
Kf6 {[%clk 0:00:50.6]} 38. Re6+ {[%clk 0:01:19.3]} 38... Kf5 {[%clk 0:00:50.2]}
39. Rxb6 {[%clk 0:01:16.7]} 39... Ne5 {[%clk 0:00:49.7]} 40. h6 {[%clk
0:01:12.1]} 40... Rh8 {[%clk 0:00:45.4]} 41. h3 {[%clk 0:01:09.3]} 41... g4
{[%clk 0:00:44.4]} 42. hxg4+ {[%clk 0:01:04.6]} 42... Kg5 {[%clk 0:00:42.3]} 43.
Rb5 {[%clk 0:00:56.9]} 43... Kxg4 {[%clk 0:00:33.5]} 44. Be6+ {[%clk 0:00:48.7]}
44... Kg5 {[%clk 0:00:33.6]} 45. Rxe5+ {[%clk 0:00:48.8]} 45... Kf6 {[%clk
0:00:34.5]} 46. Re2 {[%clk 0:00:48.9]} 46... Rxh6 {[%clk 0:00:35]} 47. Bg4
{[%clk 0:00:49.1]} 47... Kg5 {[%clk 0:00:33.4]} 48. Bf3 {[%clk 0:00:49.3]} 48...
Rb6 {[%clk 0:00:33.1]} 49. c5 {[%clk 0:00:48.7]} 49... Rb4 {[%clk 0:00:33.4]}
50. c6 {[%clk 0:00:47.9]} 50... Rc4 {[%clk 0:00:34.3]} 51. Kf2 {[%clk 0:00:48]}
51... a4 {[%clk 0:00:33.7]} 52. Rd2 {[%clk 0:00:46.7]} 52... a3 {[%clk
0:00:33.9]} 53. Ke2 {[%clk 0:00:46.3]} 53... Rb4 {[%clk 0:00:34.1]} 54. Kd3
{[%clk 0:00:45.4]} 54... Rb2 {[%clk 0:00:32.1]} 55. Rc2 {[%clk 0:00:46.1]} 55...
Kf6 {[%clk 0:00:30.6]} 56. c7 {[%clk 0:00:46.2]} 1-0

[Event "*** Titled Tuesday Blitz"]
[Site "Chess.com"]
[Date "2020.04.28"]
[Round "5"]
[White "TregubovP"]
[Black "BikingBrian"]
[Result "1/2-1/2"]
[WhiteElo "2509"]
[BlackElo "2340"]
[TimeControl "180+1"]
[EndTime "10:55:51 PDT"]
[Termination "Game drawn - insufficient material"]

1. e4 {[%clk 0:03:00.9]} 1... c5 {[%clk 0:02:59.7]} 2. Nf3 {[%clk 0:03:00.3]}
2... g6 {[%clk 0:03:00.1]} 3. c3 {[%clk 0:02:59.6]} 3... Bg7 {[%clk 0:02:59.9]}
4. d4 {[%clk 0:02:59.7]} 4... cxd4 {[%clk 0:03:00.8]} 5. cxd4 {[%clk 0:03:00.1]}
5... d5 {[%clk 0:03:01.1]} 6. e5 {[%clk 0:02:59.7]} 6... Bg4 {[%clk 0:03:01.2]}
7. Bb5+ {[%clk 0:02:59.2]} 7... Nd7 {[%clk 0:03:00.9]} 8. Nbd2 {[%clk
0:02:51.9]} 8... e6 {[%clk 0:02:59.6]} 9. O-O {[%clk 0:02:50.6]} 9... a6 {[%clk
0:02:59.1]} 10. Bxd7+ {[%clk 0:02:41.9]} 10... Qxd7 {[%clk 0:02:59.1]} 11. h3
{[%clk 0:02:42.5]} 11... Bxf3 {[%clk 0:02:59.4]} 12. Nxf3 {[%clk 0:02:42]} 12...
Ne7 {[%clk 0:02:59.6]} 13. Bg5 {[%clk 0:02:39.6]} 13... O-O {[%clk 0:02:54.8]}
14. Rc1 {[%clk 0:02:38.5]} 14... Rac8 {[%clk 0:02:48]} 15. Qb3 {[%clk
0:02:37.3]} 15... Nc6 {[%clk 0:02:40.7]} 16. Qb6 {[%clk 0:02:31.6]} 16... Qc7
{[%clk 0:02:36.1]} 17. Qxc7 {[%clk 0:02:31]} 17... Rxc7 {[%clk 0:02:37]} 18. Rc2
{[%clk 0:02:26.7]} 18... Rcc8 {[%clk 0:02:18.8]} 19. Rfc1 {[%clk 0:02:25.5]}
19... Na7 {[%clk 0:02:18.9]} 20. Be7 {[%clk 0:02:22.8]} 20... Rxc2 {[%clk
0:02:15.1]} 21. Rxc2 {[%clk 0:02:22.5]} 21... Rc8 {[%clk 0:02:15.2]} 22. Rxc8+
{[%clk 0:02:20.6]} 22... Nxc8 {[%clk 0:02:15.3]} 23. Bc5 {[%clk 0:02:21.1]}
23... Bf8 {[%clk 0:02:14]} 24. Kf1 {[%clk 0:02:15.6]} 24... b6 {[%clk
0:02:09.6]} 25. Bxf8 {[%clk 0:02:14.7]} 25... Kxf8 {[%clk 0:02:10.5]} 26. Ke2
{[%clk 0:02:15.1]} 26... Ne7 {[%clk 0:02:02.4]} 27. g4 {[%clk 0:02:13]} 27... h6
{[%clk 0:02:01.6]} 28. Kd3 {[%clk 0:02:12.3]} 28... Nc6 {[%clk 0:01:58.9]} 29.
a3 {[%clk 0:02:11.1]} 29... Ke7 {[%clk 0:01:58.3]} 30. b4 {[%clk 0:02:08.2]}
30... f5 {[%clk 0:01:32.6]} 31. exf6+ {[%clk 0:01:51.9]} 31... Kxf6 {[%clk
0:01:33.5]} 32. h4 {[%clk 0:01:51.6]} 32... e5 {[%clk 0:01:11.9]} 33. Ke3 {[%clk
0:01:39.9]} 33... e4 {[%clk 0:01:10.3]} 34. Ng1 {[%clk 0:01:32.2]} 34... h5
{[%clk 0:01:02.9]} 35. gxh5 {[%clk 0:01:31.1]} 35... gxh5 {[%clk 0:01:02.9]} 36.
Ne2 {[%clk 0:01:25.5]} 36... Kf5 {[%clk 0:01:00]} 37. f3 {[%clk 0:01:10.1]}
37... exf3 {[%clk 0:00:44.9]} 38. Kxf3 {[%clk 0:01:10.2]} 38... b5 {[%clk
0:00:42.9]} 39. Ng3+ {[%clk 0:01:07.7]} 39... Kg6 {[%clk 0:00:41.8]} 40. Ke3
{[%clk 0:01:08]} 40... a5 {[%clk 0:00:28.3]} 41. bxa5 {[%clk 0:00:59.6]} 41...
Nxa5 {[%clk 0:00:29.2]} 42. Kf4 {[%clk 0:00:51.8]} 42... Nc4 {[%clk 0:00:26.8]}
43. Nf5 {[%clk 0:00:48.9]} 43... Nxa3 {[%clk 0:00:24]} 44. Ne7+ {[%clk
0:00:48.6]} 44... Kf7 {[%clk 0:00:21.8]} 45. Nxd5 {[%clk 0:00:48.3]} 45... Nc2
{[%clk 0:00:21]} 46. Ke4 {[%clk 0:00:40]} 46... b4 {[%clk 0:00:20.4]} 47. Kd3
{[%clk 0:00:40.1]} 47... b3 {[%clk 0:00:20.3]} 48. Kc3 {[%clk 0:00:40.3]} 48...
Ke6 {[%clk 0:00:15.3]} 49. Nf4+ {[%clk 0:00:39.1]} 49... Kf5 {[%clk 0:00:15.3]}
50. Nxh5 {[%clk 0:00:38.8]} 50... Nxd4 {[%clk 0:00:14.3]} 51. Ng3+ {[%clk
0:00:37.7]} 51... Kg4 {[%clk 0:00:14.4]} 52. Ne4 {[%clk 0:00:32.8]} 52... Kxh4
{[%clk 0:00:12.8]} 53. Kxd4 {[%clk 0:00:31.6]} 53... b2 {[%clk 0:00:12.6]} 54.
Nd2 {[%clk 0:00:31.4]} 54... b1=Q {[%clk 0:00:12.8]} 55. Nxb1 {[%clk 0:00:30.5]}
1/2-1/2

[Event "*** Titled Tuesday Blitz"]
[Site "Chess.com"]
[Date "2020.04.28"]
[Round "5"]
[White "AnkitGajwa"]
[Black "madalin18"]
[Result "0-1"]
[WhiteElo "2451"]
[BlackElo "2125"]
[TimeControl "180+1"]
[EndTime "10:55:51 PDT"]
[Termination "madalin18 won by resignation"]

1. e4 {[%clk 0:03:00.9]} 1... c5 {[%clk 0:02:59.6]} 2. Nf3 {[%clk 0:02:51.3]}
2... d6 {[%clk 0:02:59.4]} 3. d4 {[%clk 0:02:47]} 3... cxd4 {[%clk 0:02:59.1]}
4. Nxd4 {[%clk 0:02:46.3]} 4... Nf6 {[%clk 0:02:59.6]} 5. Nc3 {[%clk 0:02:45.5]}
5... a6 {[%clk 0:02:59.5]} 6. Bg5 {[%clk 0:02:44.8]} 6... e6 {[%clk 0:02:59.4]}
7. f4 {[%clk 0:02:44]} 7... Be7 {[%clk 0:02:59.3]} 8. Qf3 {[%clk 0:02:42.8]}
8... Nbd7 {[%clk 0:02:58.8]} 9. O-O-O {[%clk 0:02:42.5]} 9... Qc7 {[%clk
0:02:58.4]} 10. Bd3 {[%clk 0:02:41.8]} 10... h6 {[%clk 0:02:54.3]} 11. Bh4
{[%clk 0:02:40.4]} 11... g5 {[%clk 0:02:52.9]} 12. fxg5 {[%clk 0:02:38.1]} 12...
Ne5 {[%clk 0:02:52.6]} 13. Qe2 {[%clk 0:02:37.5]} 13... Nfg4 {[%clk 0:02:51.7]}
14. Nf3 {[%clk 0:02:35.9]} 14... hxg5 {[%clk 0:02:39]} 15. Bg3 {[%clk
0:02:34.2]} 15... Bd7 {[%clk 0:02:33.5]} 16. h3 {[%clk 0:02:34]} 16... Nxf3
{[%clk 0:02:32.9]} 17. Qxf3 {[%clk 0:02:33.2]} 17... Ne5 {[%clk 0:02:32.3]} 18.
Bxe5 {[%clk 0:02:33.1]} 18... dxe5 {[%clk 0:02:32]} 19. Rdf1 {[%clk 0:02:31.5]}
19... Rh7 {[%clk 0:02:26.1]} 20. Nd1 {[%clk 0:01:39.3]} 20... O-O-O {[%clk
0:02:23.7]} 21. Ne3 {[%clk 0:01:38.3]} 21... Ba4 {[%clk 0:02:13.8]} 22. Ng4
{[%clk 0:01:34.9]} 22... Qc5 {[%clk 0:01:36]} 23. Kb1 {[%clk 0:01:28.8]} 23...
Kb8 {[%clk 0:01:34]} 24. Qe3 {[%clk 0:01:18.5]} 24... Qa5 {[%clk 0:01:14.4]} 25.
Nf6 {[%clk 0:00:55.3]} 25... Rg7 {[%clk 0:01:14]} 26. Nh5 {[%clk 0:00:53.8]}
26... Rh7 {[%clk 0:01:13]} 27. Nf6 {[%clk 0:00:51.3]} 27... Rg7 {[%clk
0:01:12.9]} 28. g3 {[%clk 0:00:45]} 28... Bc5 {[%clk 0:01:10.4]} 29. Qe2 {[%clk
0:00:44.8]} 29... Bd4 {[%clk 0:01:09.6]} 30. c3 {[%clk 0:00:41]} 30... Bxc3
{[%clk 0:00:42.6]} 31. bxc3 {[%clk 0:00:38.7]} 31... Qxc3 {[%clk 0:00:43.1]} 32.
Rf3 {[%clk 0:00:38.3]} 32... Rd4 {[%clk 0:00:30.2]} 33. Bc4 {[%clk 0:00:13.4]}
33... Qxc4 {[%clk 0:00:22.9]} 34. Qxc4 {[%clk 0:00:13]} 34... Rxc4 {[%clk
0:00:23.3]} 35. Nd7+ {[%clk 0:00:13.3]} 35... Bxd7 {[%clk 0:00:21.9]} 36. Rd1
{[%clk 0:00:11.7]} 36... Bc6 {[%clk 0:00:21.6]} 37. Rd8+ {[%clk 0:00:11.5]}
37... Kc7 {[%clk 0:00:21.1]} 38. Rg8 {[%clk 0:00:10]} 38... Rxg8 {[%clk
0:00:19.2]} 39. Rxf7+ {[%clk 0:00:10.1]} 39... Kb6 {[%clk 0:00:19.4]} 0-1

[Event "*** Titled Tuesday Blitz"]
[Site "Chess.com"]
[Date "2020.04.28"]
[Round "5"]
[White "Bagirova"]
[Black "Suleyman_Chess06"]
[Result "0-1"]
[WhiteElo "2211"]
[BlackElo "2372"]
[TimeControl "180+1"]
[EndTime "10:55:51 PDT"]
[Termination "Suleyman_Chess06 won on time"]

1. e4 {[%clk 0:03:00.9]} 1... e6 {[%clk 0:02:59.4]} 2. d4 {[%clk 0:02:59.9]}
2... d5 {[%clk 0:02:59.8]} 3. Nd2 {[%clk 0:03:00.2]} 3... dxe4 {[%clk
0:02:59.1]} 4. Nxe4 {[%clk 0:02:59.3]} 4... Bd7 {[%clk 0:02:59.7]} 5. Nf3 {[%clk
0:02:58.9]} 5... Bc6 {[%clk 0:03:00.1]} 6. Bd3 {[%clk 0:02:59.3]} 6... Nd7
{[%clk 0:03:00.6]} 7. O-O {[%clk 0:02:58.2]} 7... Ngf6 {[%clk 0:03:00.7]} 8. Ng3
{[%clk 0:02:57.3]} 8... Bd6 {[%clk 0:02:58.5]} 9. c4 {[%clk 0:02:55]} 9... b6
{[%clk 0:02:57.6]} 10. a3 {[%clk 0:02:53.1]} 10... O-O {[%clk 0:02:56.9]} 11. b4
{[%clk 0:02:51.8]} 11... Bb7 {[%clk 0:02:53.7]} 12. c5 {[%clk 0:02:49.9]} 12...
Be7 {[%clk 0:02:52.3]} 13. Qc2 {[%clk 0:02:45.1]} 13... Bxf3 {[%clk 0:02:43.3]}
14. gxf3 {[%clk 0:02:42.7]} 14... a5 {[%clk 0:02:43.1]} 15. c6 {[%clk
0:02:34.2]} 15... Nb8 {[%clk 0:02:42.9]} 16. b5 {[%clk 0:02:34.1]} 16... Qxd4
{[%clk 0:02:40.8]} 17. Bb2 {[%clk 0:02:26.6]} 17... Qd5 {[%clk 0:02:40.9]} 18.
Bxf6 {[%clk 0:02:20.9]} 18... Bxf6 {[%clk 0:02:40.7]} 19. Bxh7+ {[%clk
0:02:21.2]} 19... Kh8 {[%clk 0:02:41.1]} 20. Be4 {[%clk 0:02:21.4]} 20... Qxb5
{[%clk 0:02:38.9]} 21. Rab1 {[%clk 0:02:11.1]} 21... Qg5 {[%clk 0:02:34.2]} 22.
Kh1 {[%clk 0:02:07.6]} 22... Na6 {[%clk 0:02:33]} 23. Rg1 {[%clk 0:01:56.6]}
23... Qh4 {[%clk 0:02:33.1]} 24. Rg2 {[%clk 0:01:30.5]} 24... Nc5 {[%clk
0:02:31.9]} 25. Rbg1 {[%clk 0:01:28.3]} 25... Be5 {[%clk 0:02:30.1]} 26. Bf5
{[%clk 0:00:47.6]} 26... exf5 {[%clk 0:01:57.7]} 27. Qxf5 {[%clk 0:00:29.9]}
27... Rae8 {[%clk 0:01:47.1]} 28. Nf1 {[%clk 0:00:29.1]} 28... g6 {[%clk
0:01:46.4]} 29. Qc2 {[%clk 0:00:17.5]} 29... f5 {[%clk 0:01:19.2]} 30. Rxg6
{[%clk 0:00:16.3]} 30... Re6 {[%clk 0:01:07.1]} 31. Rxe6 {[%clk 0:00:14.7]}
31... Nxe6 {[%clk 0:01:08]} 32. Qe2 {[%clk 0:00:11.2]} 32... Qf4 {[%clk
0:01:03.5]} 33. Rg3 {[%clk 0:00:08.9]} 33... Rf7 {[%clk 0:00:57.4]} 34. Rh3+
{[%clk 0:00:08.9]} 34... Rh7 {[%clk 0:00:57.3]} 35. Rxh7+ {[%clk 0:00:09.2]}
35... Kxh7 {[%clk 0:00:58.2]} 36. Ng3 {[%clk 0:00:09.1]} 36... Nd4 {[%clk
0:00:56]} 37. Qc4 {[%clk 0:00:05.5]} 37... Qxf3+ {[%clk 0:00:45.8]} 38. Kg1
{[%clk 0:00:05.8]} 38... Kg7 {[%clk 0:00:39.7]} 0-1

[Event "*** Titled Tuesday Blitz"]
[Site "Chess.com"]
[Date "2020.04.28"]
[Round "5"]
[White "Ind1anStar"]
[Black "Sethu0025"]
[Result "1/2-1/2"]
[WhiteElo "2592"]
[BlackElo "2827"]
[TimeControl "180+1"]
[EndTime "10:55:52 PDT"]
[Termination "Game drawn by agreement"]

1. c4 {[%clk 0:03:00.9]} 1... e6 {[%clk 0:02:58.6]} 2. Nf3 {[%clk 0:02:59.8]}
2... d5 {[%clk 0:02:58.8]} 3. e3 {[%clk 0:02:59.3]} 3... Nf6 {[%clk 0:02:59]} 4.
Nc3 {[%clk 0:02:58.8]} 4... b6 {[%clk 0:02:57.2]} 5. b3 {[%clk 0:02:57.9]} 5...
Bb7 {[%clk 0:02:57]} 6. Bb2 {[%clk 0:02:58.1]} 6... a6 {[%clk 0:02:57.3]} 7. d4
{[%clk 0:02:56.7]} 7... Bd6 {[%clk 0:02:56.8]} 8. Bd3 {[%clk 0:02:55]} 8... O-O
{[%clk 0:02:56.9]} 9. O-O {[%clk 0:02:55.3]} 9... Nbd7 {[%clk 0:02:57.1]} 10.
Qe2 {[%clk 0:02:54.3]} 10... Ne4 {[%clk 0:02:52.3]} 11. Rad1 {[%clk 0:02:34.9]}
11... Qe7 {[%clk 0:02:45.5]} 12. Bxe4 {[%clk 0:02:08.8]} 12... dxe4 {[%clk
0:02:44.9]} 13. Nd2 {[%clk 0:02:05.6]} 13... f5 {[%clk 0:02:41.5]} 14. f3 {[%clk
0:02:02.8]} 14... exf3 {[%clk 0:02:37.5]} 15. Nxf3 {[%clk 0:02:03.5]} 15... c5
{[%clk 0:02:37.4]} 16. d5 {[%clk 0:02:01.9]} 16... Nf6 {[%clk 0:02:10.3]} 17. e4
{[%clk 0:01:55.3]} 17... fxe4 {[%clk 0:01:52.2]} 18. Nxe4 {[%clk 0:01:55.5]}
18... Nxe4 {[%clk 0:01:51.4]} 19. Qxe4 {[%clk 0:01:55.5]} 19... exd5 {[%clk
0:01:50.1]} 20. Qxe7 {[%clk 0:01:52.6]} 20... Bxe7 {[%clk 0:01:51]} 21. cxd5
{[%clk 0:01:51.6]} 21... Rad8 {[%clk 0:01:47.9]} 22. Rfe1 {[%clk 0:01:42]} 22...
Bf6 {[%clk 0:01:33.2]} 23. Bxf6 {[%clk 0:01:41.5]} 23... Rxf6 {[%clk 0:01:34.1]}
24. Re7 {[%clk 0:01:31.7]} 24... Bxd5 {[%clk 0:01:33.6]} 25. Ne5 {[%clk
0:01:21]} 25... Rfd6 {[%clk 0:01:26.7]} 26. h3 {[%clk 0:01:13.3]} 26... h6
{[%clk 0:01:20.6]} 27. Ra7 {[%clk 0:01:13]} 27... b5 {[%clk 0:01:15]} 28. h4
{[%clk 0:01:10.9]} 28... Re8 {[%clk 0:00:58.2]} 29. Nf7 {[%clk 0:00:51.4]} 29...
Rf6 {[%clk 0:00:40.8]} 30. Rxd5 {[%clk 0:00:51.1]} 30... Rxf7 {[%clk 0:00:38.4]}
31. Rxf7 {[%clk 0:00:35.8]} 31... Kxf7 {[%clk 0:00:39.3]} 32. Rxc5 {[%clk
0:00:36.4]} 32... Re2 {[%clk 0:00:38.9]} 33. a4 {[%clk 0:00:35.8]} 33... b4
{[%clk 0:00:22.6]} 34. Rc7+ {[%clk 0:00:34.4]} 34... Kg8 {[%clk 0:00:19.6]} 35.
Rb7 {[%clk 0:00:27.7]} 35... a5 {[%clk 0:00:18.9]} 36. Rb5 {[%clk 0:00:27.8]}
36... Re3 {[%clk 0:00:19]} 37. Rxa5 {[%clk 0:00:27.8]} 37... Rxb3 {[%clk
0:00:19.2]} 38. Rb5 {[%clk 0:00:28.5]} 38... Kh7 {[%clk 0:00:18.5]} 39. h5
{[%clk 0:00:28.4]} 39... Rb1+ {[%clk 0:00:18.4]} 40. Kh2 {[%clk 0:00:28.3]}
40... b3 {[%clk 0:00:19.3]} 41. a5 {[%clk 0:00:28.6]} 41... b2 {[%clk
0:00:18.8]} 42. a6 {[%clk 0:00:28.8]} 42... Ra1 {[%clk 0:00:18.3]} 43. Rxb2
{[%clk 0:00:29.3]} 43... Rxa6 {[%clk 0:00:18.6]} 44. Rb5 {[%clk 0:00:29.8]}
44... Rf6 {[%clk 0:00:18.8]} 45. Kh3 {[%clk 0:00:29.5]} 45... Rf1 {[%clk
0:00:18.8]} 46. g4 {[%clk 0:00:27.4]} 46... Rf3+ {[%clk 0:00:18.8]} 47. Kg2
{[%clk 0:00:27.6]} 47... Rf6 {[%clk 0:00:19.7]} 48. Re5 {[%clk 0:00:27.1]} 48...
Rd6 {[%clk 0:00:19.7]} 1/2-1/2